[Event "Late-Titled-Tuesday-Blitz-October-10-2023"]
[Site "Chess.com"]
[Date "2023.10.10"]
[Round "1"]
[White "Atanejhad"]
[Black "GMG"]
[Result "0-1"]
[WhiteElo "2386"]
[BlackElo "2715"]
[TimeControl "180+1"]
[EndTime "14:06:42 PDT"]
[Termination "GMG won by checkmate"]

1. d4 {[%clk 0:03:00]} 1... f5 {[%clk 0:02:59.6]} 2. b3 {[%clk 0:02:58.8]} 2...
Nf6 {[%clk 0:02:58.8]} 3. Bb2 {[%clk 0:02:59.4]} 3... e6 {[%clk 0:02:58.1]} 4.
Nd2 {[%clk 0:02:59.6]} 4... b6 {[%clk 0:02:56.3]} 5. c4 {[%clk 0:03:00]} 5...
Bb7 {[%clk 0:02:55.9]} 6. e3 {[%clk 0:03:00.1]} 6... Bb4 {[%clk 0:02:54.2]} 7.
a3 {[%clk 0:02:58]} 7... Bxd2+ {[%clk 0:02:53.1]} 8. Qxd2 {[%clk 0:02:58.9]}
8... O-O {[%clk 0:02:51.9]} 9. Nf3 {[%clk 0:02:57.7]} 9... Ne4 {[%clk 0:02:52]}
10. Qc2 {[%clk 0:02:57.1]} 10... Qf6 {[%clk 0:02:41.3]} 11. Bd3 {[%clk
0:02:55.9]} 11... Qg6 {[%clk 0:02:41.3]} 12. Rg1 {[%clk 0:02:44.3]} 12... d6
{[%clk 0:02:38.1]} 13. O-O-O {[%clk 0:02:43.4]} 13... Nd7 {[%clk 0:02:27.1]} 14.
Kb1 {[%clk 0:02:41.5]} 14... c5 {[%clk 0:02:06.8]} 15. d5 {[%clk 0:02:40.8]}
15... exd5 {[%clk 0:02:07.3]} 16. cxd5 {[%clk 0:02:39.9]} 16... Rae8 {[%clk
0:02:07.7]} 17. g4 {[%clk 0:02:27.4]} 17... fxg4 {[%clk 0:02:01.9]} 18. Nd2
{[%clk 0:02:26.6]} 18... Nxd2+ {[%clk 0:02:00.1]} 19. Rxd2 {[%clk 0:02:22.4]}
19... Qh5 {[%clk 0:01:55.7]} 20. h3 {[%clk 0:02:14.4]} 20... Qxh3 {[%clk
0:01:39.1]} 21. Bf5 {[%clk 0:01:57.5]} 21... Ne5 {[%clk 0:01:28.2]} 22. Rg3
{[%clk 0:01:37.8]} 22... Qh5 {[%clk 0:01:12.4]} 23. Be6+ {[%clk 0:01:37.2]}
23... Kh8 {[%clk 0:00:45.7]} 24. f4 {[%clk 0:01:32.7]} 24... gxf3 {[%clk
0:00:41.2]} 25. Rh2 {[%clk 0:01:31.8]} 25... Qxh2 {[%clk 0:00:40]} 26. Qxh2
{[%clk 0:01:30.4]} 26... f2 {[%clk 0:00:40.4]} 27. Rh3 {[%clk 0:01:09.6]} 27...
f1=Q+ {[%clk 0:00:40.2]} 28. Ka2 {[%clk 0:01:10.1]} 28... Qd3 {[%clk 0:00:39.8]}
29. Rh4 {[%clk 0:00:28.2]} 29... Rxe6 {[%clk 0:00:33]} 30. dxe6 {[%clk
0:00:28.6]} 30... Bd5 {[%clk 0:00:32.6]} 31. e7 {[%clk 0:00:12.5]} 31... Bxb3+
{[%clk 0:00:29.2]} 32. Ka1 {[%clk 0:00:11.7]} 32... Qd1+ {[%clk 0:00:29.3]} 33.
Bc1 {[%clk 0:00:12.4]} 33... Qxc1# {[%clk 0:00:29.2]} 0-1

[Event "Late-Titled-Tuesday-Blitz-October-10-2023"]
[Site "Chess.com"]
[Date "2023.10.10"]
[Round "1"]
[White "Arystanner"]
[Black "Eloist"]
[Result "1-0"]
[WhiteElo "2819"]
[BlackElo "2438"]
[TimeControl "180+1"]
[EndTime "14:06:50 PDT"]
[Termination "Arystanner won on time"]

1. Nf3 {[%clk 0:03:00.9]} 1... Nf6 {[%clk 0:02:59.6]} 2. c4 {[%clk 0:03:00.9]}
2... e6 {[%clk 0:02:59.2]} 3. e3 {[%clk 0:03:01.1]} 3... b6 {[%clk 0:02:58.9]}
4. b3 {[%clk 0:03:01.4]} 4... Bb7 {[%clk 0:02:58.9]} 5. Bb2 {[%clk 0:03:01.9]}
5... c5 {[%clk 0:02:58.9]} 6. g3 {[%clk 0:03:02.2]} 6... g6 {[%clk 0:02:58.7]}
7. Bg2 {[%clk 0:03:02.1]} 7... Bg7 {[%clk 0:02:59]} 8. O-O {[%clk 0:03:02.8]}
8... O-O {[%clk 0:02:59.4]} 9. Nc3 {[%clk 0:03:02.2]} 9... d6 {[%clk 0:02:48]}
10. Qc2 {[%clk 0:03:00.5]} 10... Nbd7 {[%clk 0:02:46.1]} 11. Rfd1 {[%clk
0:02:58.3]} 11... e5 {[%clk 0:02:42.2]} 12. d3 {[%clk 0:02:57.6]} 12... Re8
{[%clk 0:02:40.9]} 13. e4 {[%clk 0:02:51.7]} 13... Nf8 {[%clk 0:02:37.4]} 14.
Nd5 {[%clk 0:02:52]} 14... Ne6 {[%clk 0:02:36.6]} 15. Bh3 {[%clk 0:02:47.1]}
15... Bc8 {[%clk 0:02:30.8]} 16. Kg2 {[%clk 0:02:42.9]} 16... Nxd5 {[%clk
0:02:23.2]} 17. cxd5 {[%clk 0:02:42.9]} 17... Ng5 {[%clk 0:02:01.6]} 18. Nxg5
{[%clk 0:02:36.6]} 18... Qxg5 {[%clk 0:02:00.5]} 19. Bxc8 {[%clk 0:02:37.5]}
19... Raxc8 {[%clk 0:01:59.6]} 20. Qd2 {[%clk 0:02:33.8]} 20... Qxd2 {[%clk
0:01:56.9]} 21. Rxd2 {[%clk 0:02:33.8]} 21... f5 {[%clk 0:01:53.9]} 22. Re1
{[%clk 0:02:22.4]} 22... Rf8 {[%clk 0:01:45.5]} 23. Rde2 {[%clk 0:02:09.1]}
23... f4 {[%clk 0:01:34.8]} 24. f3 {[%clk 0:02:09.6]} 24... h5 {[%clk
0:01:28.3]} 25. Bc1 {[%clk 0:01:53.9]} 25... Bh6 {[%clk 0:01:22.3]} 26. Bd2
{[%clk 0:01:40.7]} 26... Kg7 {[%clk 0:01:21.5]} 27. Rc1 {[%clk 0:01:29.7]} 27...
g5 {[%clk 0:00:57.1]} 28. gxf4 {[%clk 0:01:28.9]} 28... gxf4 {[%clk 0:00:36.7]}
29. Kh3 {[%clk 0:01:28.7]} 29... Bg5 {[%clk 0:00:32.4]} 30. Rg2 {[%clk
0:01:28.5]} 30... Kf6 {[%clk 0:00:24.4]} 31. Rcg1 {[%clk 0:01:29]} 31... Rg8
{[%clk 0:00:24.5]} 32. Be1 {[%clk 0:01:29.6]} 32... Rg7 {[%clk 0:00:17.7]} 33.
b4 {[%clk 0:01:24.6]} 33... Rcg8 {[%clk 0:00:15.3]} 34. bxc5 {[%clk 0:01:24.5]}
34... bxc5 {[%clk 0:00:15]} 35. Ba5 {[%clk 0:01:22.6]} 35... Bh6 {[%clk
0:00:12.3]} 36. Rxg7 {[%clk 0:01:07.3]} 36... Rxg7 {[%clk 0:00:13.2]} 37. Rxg7
{[%clk 0:01:07.7]} 37... Bxg7 {[%clk 0:00:12.6]} 38. Kh4 {[%clk 0:01:08]} 38...
Kg6 {[%clk 0:00:12.6]} 39. Bd8 {[%clk 0:01:02.1]} 39... Bf8 {[%clk 0:00:08]} 40.
a4 {[%clk 0:00:59.5]} 40... a6 {[%clk 0:00:07.1]} 41. Bg5 {[%clk 0:00:54.2]} 1-0

[Event "Late-Titled-Tuesday-Blitz-October-10-2023"]
[Site "Chess.com"]
[Date "2023.10.10"]
[Round "1"]
[White "Vamostodorecto"]
[Black "Binary010"]
[Result "0-1"]
[WhiteElo "2443"]
[BlackElo "2830"]
[TimeControl "180+1"]
[EndTime "14:06:57 PDT"]
[Termination "Binary010 won on time"]

1. d4 {[%clk 0:02:46.7]} 1... Nf6 {[%clk 0:02:59.9]} 2. c4 {[%clk 0:02:45.8]}
2... e6 {[%clk 0:03:00.3]} 3. Nc3 {[%clk 0:02:43.8]} 3... Bb4 {[%clk 0:02:59.9]}
4. e3 {[%clk 0:02:44.5]} 4... O-O {[%clk 0:02:59]} 5. Bd2 {[%clk 0:02:40.5]}
5... c5 {[%clk 0:02:56.7]} 6. Nf3 {[%clk 0:02:37.4]} 6... b6 {[%clk 0:02:56.7]}
7. Bd3 {[%clk 0:02:36.5]} 7... Bb7 {[%clk 0:02:56.9]} 8. O-O {[%clk 0:02:36]}
8... d6 {[%clk 0:02:55.6]} 9. Rc1 {[%clk 0:02:34.6]} 9... Nbd7 {[%clk
0:02:55.3]} 10. Nb5 {[%clk 0:02:32.9]} 10... Bxf3 {[%clk 0:02:50.8]} 11. gxf3
{[%clk 0:02:29.2]} 11... Bxd2 {[%clk 0:02:50.9]} 12. Qxd2 {[%clk 0:02:30.1]}
12... Qe7 {[%clk 0:02:50.3]} 13. Kh1 {[%clk 0:02:27]} 13... a6 {[%clk
0:02:49.6]} 14. Nc3 {[%clk 0:01:44.2]} 14... cxd4 {[%clk 0:02:49.7]} 15. exd4
{[%clk 0:01:42.3]} 15... Nh5 {[%clk 0:02:46.9]} 16. Rg1 {[%clk 0:01:38.9]} 16...
Qf6 {[%clk 0:02:43.6]} 17. Be4 {[%clk 0:01:32.1]} 17... Rac8 {[%clk 0:02:39.8]}
18. Ne2 {[%clk 0:01:29.3]} 18... e5 {[%clk 0:02:26.1]} 19. Qg5 {[%clk
0:01:17.7]} 19... Qxg5 {[%clk 0:02:16.3]} 20. Rxg5 {[%clk 0:01:18.6]} 20... g6
{[%clk 0:02:17]} 21. Bb7 {[%clk 0:01:16]} 21... Rc7 {[%clk 0:02:14.2]} 22. Bxa6
{[%clk 0:01:16.2]} 22... Ra8 {[%clk 0:02:12.2]} 23. Bb5 {[%clk 0:01:15.7]} 23...
Rxa2 {[%clk 0:02:12.2]} 24. Bxd7 {[%clk 0:01:05.8]} 24... Rxd7 {[%clk
0:02:11.9]} 25. dxe5 {[%clk 0:01:06.5]} 25... Rxb2 {[%clk 0:02:05.6]} 26. Ng3
{[%clk 0:00:56.5]} 26... Nxg3+ {[%clk 0:02:04.9]} 27. hxg3 {[%clk 0:00:31.8]}
27... dxe5 {[%clk 0:02:01.7]} 28. Rxe5 {[%clk 0:00:20.7]} 28... Rxf2 {[%clk
0:01:59.2]} 29. Rb5 {[%clk 0:00:14.8]} 29... Rd6 {[%clk 0:01:43.7]} 30. f4
{[%clk 0:00:14.9]} 30... h5 {[%clk 0:01:42.8]} 31. Kg1 {[%clk 0:00:14.5]} 31...
Rdd2 {[%clk 0:01:39.5]} 32. Rxb6 {[%clk 0:00:12.9]} 32... Rg2+ {[%clk
0:01:39.8]} 33. Kh1 {[%clk 0:00:11.7]} 33... Rh2+ {[%clk 0:01:32.3]} 34. Kg1
{[%clk 0:00:10.9]} 34... Rdg2+ {[%clk 0:01:33.2]} 35. Kf1 {[%clk 0:00:11]} 35...
Rxg3 {[%clk 0:01:34.1]} 36. c5 {[%clk 0:00:09.8]} 36... h4 {[%clk 0:01:23.8]}
37. Rc4 {[%clk 0:00:08.7]} 37... Ra3 {[%clk 0:01:22.6]} 38. Kg1 {[%clk
0:00:06.9]} 38... Raa2 {[%clk 0:01:20.4]} 39. c6 {[%clk 0:00:03.9]} 39... Rag2+
{[%clk 0:01:18.8]} 40. Kf1 {[%clk 0:00:04.6]} 40... Rc2 {[%clk 0:01:19.1]} 41.
Rxc2 {[%clk 0:00:03.9]} 41... Rxc2 {[%clk 0:01:20]} 42. Ra6 {[%clk 0:00:02.4]}
42... Kg7 {[%clk 0:01:18.5]} 43. Kg1 {[%clk 0:00:03.3]} 43... Kf6 {[%clk
0:01:15.5]} 44. c7+ {[%clk 0:00:03.6]} 44... Kf5 {[%clk 0:01:15.8]} 45. Ra7
{[%clk 0:00:03.9]} 45... f6 {[%clk 0:01:14.4]} 46. Ra5+ {[%clk 0:00:03]} 46...
Kxf4 {[%clk 0:01:14.4]} 47. Ra6 {[%clk 0:00:03.5]} 47... Kg5 {[%clk 0:01:12.8]}
48. Ra5+ {[%clk 0:00:02.6]} 48... f5 {[%clk 0:01:12.9]} 49. Ra7 {[%clk
0:00:01.8]} 49... Kg4 {[%clk 0:01:13]} 50. Kf1 {[%clk 0:00:02]} 50... h3 {[%clk
0:01:12.6]} 51. Ke1 {[%clk 0:00:01.1]} 51... h2 {[%clk 0:01:11.9]} 0-1

[Event "Late-Titled-Tuesday-Blitz-October-10-2023"]
[Site "Chess.com"]
[Date "2023.10.10"]
[Round "1"]
[White "miraitrunks"]
[Black "aNaartjieZA"]
[Result "1/2-1/2"]
[WhiteElo "2216"]
[BlackElo "2570"]
[TimeControl "180+1"]
[EndTime "14:06:58 PDT"]
[Termination "Game drawn by repetition"]

1. e4 {[%clk 0:03:00]} 1... e6 {[%clk 0:02:59.8]} 2. Nc3 {[%clk 0:02:57.8]} 2...
d5 {[%clk 0:02:59.7]} 3. Nf3 {[%clk 0:02:58.5]} 3... Nf6 {[%clk 0:02:59.2]} 4.
e5 {[%clk 0:02:59]} 4... Nfd7 {[%clk 0:02:59.5]} 5. d4 {[%clk 0:02:59.6]} 5...
c5 {[%clk 0:02:59.9]} 6. dxc5 {[%clk 0:03:00.5]} 6... Nc6 {[%clk 0:03:00.1]} 7.
Bf4 {[%clk 0:02:59.7]} 7... Bxc5 {[%clk 0:03:00.3]} 8. Bd3 {[%clk 0:02:58.8]}
8... a6 {[%clk 0:03:00.3]} 9. O-O {[%clk 0:02:58.4]} 9... h6 {[%clk 0:03:00.2]}
10. Qe2 {[%clk 0:02:55]} 10... O-O {[%clk 0:03:00]} 11. Rad1 {[%clk 0:02:54.1]}
11... b5 {[%clk 0:02:59.5]} 12. Ne4 {[%clk 0:02:39.7]} 12... Be7 {[%clk
0:02:50.8]} 13. Ng3 {[%clk 0:02:34.6]} 13... f5 {[%clk 0:02:45.5]} 14. exf6
{[%clk 0:02:32.5]} 14... Nxf6 {[%clk 0:02:45.3]} 15. Ne5 {[%clk 0:02:30.7]}
15... Nxe5 {[%clk 0:02:44.1]} 16. Bxe5 {[%clk 0:02:31.6]} 16... Bd6 {[%clk
0:02:43.9]} 17. c4 {[%clk 0:02:14.9]} 17... bxc4 {[%clk 0:02:38]} 18. Bxc4
{[%clk 0:02:13.4]} 18... Bxe5 {[%clk 0:02:31.4]} 19. Qxe5 {[%clk 0:02:12.6]}
19... Qb6 {[%clk 0:02:31.3]} 20. Bb3 {[%clk 0:02:09.3]} 20... Ng4 {[%clk
0:02:29]} 21. Qe2 {[%clk 0:02:08.6]} 21... Nf6 {[%clk 0:02:25.7]} 22. h3 {[%clk
0:02:04.3]} 22... Bd7 {[%clk 0:02:25.5]} 23. Rfe1 {[%clk 0:02:02.9]} 23... Rae8
{[%clk 0:02:24.5]} 24. Rd2 {[%clk 0:01:59.9]} 24... Kh8 {[%clk 0:02:24.6]} 25.
Nh5 {[%clk 0:01:58.7]} 25... Bb5 {[%clk 0:02:22.4]} 26. Qd1 {[%clk 0:01:37.2]}
26... Ne4 {[%clk 0:02:20.5]} 27. Qg4 {[%clk 0:01:21.1]} 27... Re7 {[%clk
0:02:09.9]} 28. Rxe4 {[%clk 0:00:45.7]} 28... dxe4 {[%clk 0:02:10]} 29. Nf4
{[%clk 0:00:44.9]} 29... Ref7 {[%clk 0:01:08.1]} 30. Ng6+ {[%clk 0:00:40.8]}
30... Kh7 {[%clk 0:01:08]} 31. Nxf8+ {[%clk 0:00:40.5]} 31... Rxf8 {[%clk
0:01:08.2]} 32. Qxe4+ {[%clk 0:00:40.6]} 32... Kh8 {[%clk 0:01:08.2]} 33. Qxe6
{[%clk 0:00:39]} 33... Qa5 {[%clk 0:01:06.5]} 34. Rd4 {[%clk 0:00:27.3]} 34...
Qc7 {[%clk 0:01:04.4]} 35. Rh4 {[%clk 0:00:23.4]} 35... Qc1+ {[%clk 0:01:01.2]}
36. Kh2 {[%clk 0:00:22.7]} 36... Qc7+ {[%clk 0:00:54.5]} 37. Kg1 {[%clk
0:00:18.7]} 37... Qc1+ {[%clk 0:00:53.2]} 38. Kh2 {[%clk 0:00:17.8]} 38... Qc7+
{[%clk 0:00:39.7]} 39. Kg1 {[%clk 0:00:16.6]} 1/2-1/2

[Event "Late-Titled-Tuesday-Blitz-October-10-2023"]
[Site "Chess.com"]
[Date "2023.10.10"]
[Round "1"]
[White "talaicito"]
[Black "AlleyOoper"]
[Result "0-1"]
[WhiteElo "2220"]
[BlackElo "2587"]
[TimeControl "180+1"]
[EndTime "14:07:02 PDT"]
[Termination "AlleyOoper won by resignation"]

1. d4 {[%clk 0:02:59.6]} 1... Nf6 {[%clk 0:02:59.7]} 2. Nc3 {[%clk 0:02:58.4]}
2... d5 {[%clk 0:02:59]} 3. Bf4 {[%clk 0:02:58.7]} 3... a6 {[%clk 0:02:59]} 4.
e3 {[%clk 0:02:59.2]} 4... e6 {[%clk 0:02:50.9]} 5. Nf3 {[%clk 0:02:58.5]} 5...
c5 {[%clk 0:02:51]} 6. dxc5 {[%clk 0:02:53]} 6... Bxc5 {[%clk 0:02:50.5]} 7. Bd3
{[%clk 0:02:53.9]} 7... Nc6 {[%clk 0:02:47.1]} 8. O-O {[%clk 0:02:54.1]} 8... b5
{[%clk 0:02:37.5]} 9. a3 {[%clk 0:02:50.1]} 9... Bb7 {[%clk 0:02:35.8]} 10. e4
{[%clk 0:02:49.1]} 10... O-O {[%clk 0:01:57.3]} 11. e5 {[%clk 0:02:39.5]} 11...
Nd7 {[%clk 0:01:42.7]} 12. Bxh7+ {[%clk 0:02:26.5]} 12... Kxh7 {[%clk
0:01:40.2]} 13. Ng5+ {[%clk 0:02:26.7]} 13... Kg6 {[%clk 0:01:26.5]} 14. Qg4
{[%clk 0:01:53.6]} 14... Ndxe5 {[%clk 0:01:23.5]} 15. Qg3 {[%clk 0:01:43.1]}
15... Kf6 {[%clk 0:01:23.9]} 16. Nge4+ {[%clk 0:01:23.8]} 16... Ke7 {[%clk
0:01:08.6]} 17. Nxc5 {[%clk 0:01:23.7]} 17... f6 {[%clk 0:00:52.2]} 18. Nxb7
{[%clk 0:01:15.1]} 18... Qb6 {[%clk 0:00:50.6]} 19. Bxe5 {[%clk 0:00:44.7]}
19... Nxe5 {[%clk 0:00:43.9]} 20. Rfe1 {[%clk 0:00:23.1]} 20... Qxb7 {[%clk
0:00:28.2]} 21. f4 {[%clk 0:00:21.1]} 21... Nc4 {[%clk 0:00:21.2]} 22. f5 {[%clk
0:00:16.5]} 22... Ne5 {[%clk 0:00:20.2]} 23. fxe6 {[%clk 0:00:15.6]} 23... Qb6+
{[%clk 0:00:15.1]} 24. Kh1 {[%clk 0:00:15.2]} 24... Qxe6 {[%clk 0:00:15.8]} 25.
Rad1 {[%clk 0:00:14]} 25... Rad8 {[%clk 0:00:15.7]} 26. Qxg7+ {[%clk 0:00:12.9]}
26... Rf7 {[%clk 0:00:15.9]} 27. Qg3 {[%clk 0:00:11.9]} 27... Rh7 {[%clk
0:00:13.7]} 28. h3 {[%clk 0:00:11]} 28... Kf7 {[%clk 0:00:13.4]} 29. Ne2 {[%clk
0:00:10.8]} 29... Rg8 {[%clk 0:00:13.5]} 30. Qf2 {[%clk 0:00:08.9]} 30... Rxh3+
{[%clk 0:00:13.5]} 31. gxh3 {[%clk 0:00:08.1]} 31... Qxh3+ {[%clk 0:00:13.9]}
32. Qh2 {[%clk 0:00:06.7]} 32... Qf3+ {[%clk 0:00:14.6]} 0-1

[Event "Late-Titled-Tuesday-Blitz-October-10-2023"]
[Site "Chess.com"]
[Date "2023.10.10"]
[Round "1"]
[White "ThaBarWa"]
[Black "tjallkompall"]
[Result "0-1"]
[WhiteElo "2410"]
[BlackElo "2747"]
[TimeControl "180+1"]
[EndTime "14:07:03 PDT"]
[Termination "tjallkompall won by resignation"]

1. d4 {[%clk 0:03:00.5]} 1... d5 {[%clk 0:02:58.4]} 2. c4 {[%clk 0:03:00.2]}
2... dxc4 {[%clk 0:02:58.6]} 3. Nf3 {[%clk 0:02:58.8]} 3... Nf6 {[%clk 0:02:58]}
4. e3 {[%clk 0:02:58.9]} 4... b5 {[%clk 0:02:58.3]} 5. a4 {[%clk 0:02:55.6]}
5... b4 {[%clk 0:02:58.9]} 6. Bxc4 {[%clk 0:02:54.7]} 6... e6 {[%clk 0:02:59.6]}
7. O-O {[%clk 0:02:54.8]} 7... Be7 {[%clk 0:02:59.7]} 8. Qe2 {[%clk 0:02:51.8]}
8... O-O {[%clk 0:02:59.6]} 9. Rd1 {[%clk 0:02:49.3]} 9... Bb7 {[%clk 0:02:59]}
10. b3 {[%clk 0:02:48.5]} 10... Nbd7 {[%clk 0:02:58.7]} 11. Bb2 {[%clk
0:02:45.9]} 11... c5 {[%clk 0:02:58.2]} 12. a5 {[%clk 0:02:32.9]} 12... a6
{[%clk 0:02:54.7]} 13. Nbd2 {[%clk 0:02:26.4]} 13... Qb8 {[%clk 0:02:52.9]} 14.
e4 {[%clk 0:02:01.4]} 14... cxd4 {[%clk 0:02:45.9]} 15. Nxd4 {[%clk 0:01:57.3]}
15... Ne5 {[%clk 0:02:16.5]} 16. f3 {[%clk 0:01:16.7]} 16... Rd8 {[%clk
0:02:04.8]} 17. Kh1 {[%clk 0:01:14.7]} 17... Bc5 {[%clk 0:01:45.7]} 18. Nf1
{[%clk 0:00:53.9]} 18... Nh5 {[%clk 0:01:31]} 19. g3 {[%clk 0:00:30.5]} 19...
Nf6 {[%clk 0:01:23.1]} 20. Ne3 {[%clk 0:00:27.9]} 20... Qa7 {[%clk 0:00:43.3]}
21. Nxe6 {[%clk 0:00:23]} 21... fxe6 {[%clk 0:00:29.3]} 22. Bxe6+ {[%clk
0:00:22.9]} 22... Kh8 {[%clk 0:00:29.5]} 23. Bxe5 {[%clk 0:00:12.1]} 23... Bxe3
{[%clk 0:00:28.9]} 24. Qb2 {[%clk 0:00:12.4]} 24... Re8 {[%clk 0:00:12.8]} 25.
Bxf6 {[%clk 0:00:10.7]} 25... Rxe6 {[%clk 0:00:13.4]} 26. Bxg7+ {[%clk 0:00:11]}
26... Kg8 {[%clk 0:00:13.9]} 27. Rd7 {[%clk 0:00:09.3]} 27... Bxe4 {[%clk
0:00:09.1]} 28. Rxa7 {[%clk 0:00:06.7]} 28... Bxf3+ {[%clk 0:00:09.6]} 29. Qg2
{[%clk 0:00:07.5]} 29... Bxg2+ {[%clk 0:00:10.1]} 30. Kxg2 {[%clk 0:00:08.4]}
30... Rxa7 {[%clk 0:00:10.4]} 0-1

[Event "Late-Titled-Tuesday-Blitz-October-10-2023"]
[Site "Chess.com"]
[Date "2023.10.10"]
[Round "1"]
[White "Orest_Vovk"]
[Black "Mariia89"]
[Result "1-0"]
[WhiteElo "2536"]
[BlackElo "2050"]
[TimeControl "180+1"]
[EndTime "14:07:03 PDT"]
[Termination "Orest_Vovk won on time"]

1. h4 {[%clk 0:03:00.9]} 1... c5 {[%clk 0:02:57.6]} 2. h5 {[%clk 0:02:59.6]}
2... h6 {[%clk 0:02:57.2]} 3. Nc3 {[%clk 0:02:53.7]} 3... Nc6 {[%clk 0:02:57.3]}
4. Nf3 {[%clk 0:02:52.1]} 4... d5 {[%clk 0:02:57.2]} 5. e4 {[%clk 0:02:51.7]}
5... d4 {[%clk 0:02:55.2]} 6. Ne2 {[%clk 0:02:51.5]} 6... e5 {[%clk 0:02:54.5]}
7. Ng3 {[%clk 0:02:48]} 7... Nf6 {[%clk 0:02:48.8]} 8. Bc4 {[%clk 0:02:46.7]}
8... Bg4 {[%clk 0:02:30.9]} 9. d3 {[%clk 0:02:41.7]} 9... a6 {[%clk 0:02:30.6]}
10. a3 {[%clk 0:02:41.3]} 10... b5 {[%clk 0:02:28.9]} 11. Ba2 {[%clk 0:02:41.1]}
11... Rc8 {[%clk 0:02:28.8]} 12. Bd2 {[%clk 0:02:31.3]} 12... Bd6 {[%clk
0:02:22.6]} 13. Nf5 {[%clk 0:02:24]} 13... Bxf5 {[%clk 0:02:19]} 14. exf5 {[%clk
0:02:24.9]} 14... Qd7 {[%clk 0:01:46.1]} 15. Nh4 {[%clk 0:02:24.3]} 15... Ne7
{[%clk 0:01:33.9]} 16. g4 {[%clk 0:02:20.8]} 16... c4 {[%clk 0:01:24.3]} 17. Qf3
{[%clk 0:02:13.9]} 17... Qc6 {[%clk 0:01:09.7]} 18. Qxc6+ {[%clk 0:02:08.7]}
18... Rxc6 {[%clk 0:01:09.6]} 19. f3 {[%clk 0:02:08.1]} 19... Ned5 {[%clk
0:01:08.2]} 20. Ng2 {[%clk 0:01:56.5]} 20... Kd7 {[%clk 0:01:03.6]} 21. Ke2
{[%clk 0:01:55]} 21... Re8 {[%clk 0:01:03.2]} 22. g5 {[%clk 0:01:43.3]} 22...
hxg5 {[%clk 0:01:02.2]} 23. Bxg5 {[%clk 0:01:42.7]} 23... cxd3+ {[%clk 0:00:58]}
24. Kxd3 {[%clk 0:01:30.7]} 24... Rec8 {[%clk 0:00:35.8]} 25. Rac1 {[%clk
0:01:29.6]} 25... b4 {[%clk 0:00:35.4]} 26. h6 {[%clk 0:01:19.5]} 26... gxh6
{[%clk 0:00:30.5]} 27. Rxh6 {[%clk 0:01:18]} 27... Be7 {[%clk 0:00:24.8]} 28.
Bb3 {[%clk 0:01:07.1]} 28... bxa3 {[%clk 0:00:24]} 29. Ba4 {[%clk 0:01:07.1]}
29... Nb4+ {[%clk 0:00:22.3]} 30. Kd2 {[%clk 0:00:55.5]} 30... axb2 {[%clk
0:00:22.5]} 31. Rb1 {[%clk 0:00:55.2]} 31... Ne4+ {[%clk 0:00:11.6]} 32. fxe4
{[%clk 0:00:40.3]} 32... Bxg5+ {[%clk 0:00:11]} 33. Kd1 {[%clk 0:00:39.8]} 33...
Bxh6 {[%clk 0:00:11.3]} 34. Rxb2 {[%clk 0:00:39.3]} 34... Kd6 {[%clk 0:00:10.9]}
35. Rxb4 {[%clk 0:00:36.9]} 1-0

[Event "Late-Titled-Tuesday-Blitz-October-10-2023"]
[Site "Chess.com"]
[Date "2023.10.10"]
[Round "1"]
[White "AungTZ"]
[Black "NigelDwarf"]
[Result "0-1"]
[WhiteElo "2023"]
[BlackElo "2535"]
[TimeControl "180+1"]
[EndTime "14:07:03 PDT"]
[Termination "NigelDwarf won by resignation"]

1. e4 {[%clk 0:02:52.7]} 1... c5 {[%clk 0:02:59.2]} 2. Nf3 {[%clk 0:02:28]} 2...
d6 {[%clk 0:02:58.4]} 3. d4 {[%clk 0:02:28.1]} 3... cxd4 {[%clk 0:02:59.3]} 4.
Nxd4 {[%clk 0:02:28.4]} 4... Nf6 {[%clk 0:02:59.8]} 5. Nc3 {[%clk 0:02:28.8]}
5... a6 {[%clk 0:03:00]} 6. g3 {[%clk 0:02:28.2]} 6... e5 {[%clk 0:02:59.2]} 7.
Nb3 {[%clk 0:02:28.3]} 7... Be7 {[%clk 0:02:58]} 8. Bg2 {[%clk 0:02:27]} 8...
O-O {[%clk 0:02:57]} 9. O-O {[%clk 0:02:24.4]} 9... Be6 {[%clk 0:02:53]} 10. Bd2
{[%clk 0:02:22.5]} 10... Nc6 {[%clk 0:02:45.2]} 11. Re1 {[%clk 0:02:22]} 11...
Re8 {[%clk 0:02:41.2]} 12. a4 {[%clk 0:02:11.4]} 12... Rc8 {[%clk 0:02:39.9]}
13. a5 {[%clk 0:02:11.1]} 13... Bxb3 {[%clk 0:02:26.9]} 14. cxb3 {[%clk
0:02:10.5]} 14... Nxa5 {[%clk 0:02:27.5]} 15. Nd5 {[%clk 0:02:07.4]} 15... Nc6
{[%clk 0:02:26.9]} 16. Nxe7+ {[%clk 0:02:01.3]} 16... Qxe7 {[%clk 0:02:26.1]}
17. Bc3 {[%clk 0:02:01.2]} 17... Red8 {[%clk 0:02:24.8]} 18. Qd2 {[%clk
0:01:54.1]} 18... Qe6 {[%clk 0:02:24.2]} 19. Red1 {[%clk 0:01:48.9]} 19... Qxb3
{[%clk 0:02:21.4]} 20. h3 {[%clk 0:01:38.9]} 20... h6 {[%clk 0:02:01.8]} 21. Kh2
{[%clk 0:01:33.2]} 21... Qc4 {[%clk 0:01:38.3]} 22. f3 {[%clk 0:01:14.7]} 22...
d5 {[%clk 0:01:37]} 23. Rac1 {[%clk 0:01:09.8]} 23... dxe4 {[%clk 0:01:36.5]}
24. Qf2 {[%clk 0:01:05.1]} 24... Rxd1 {[%clk 0:01:35.8]} 25. Rxd1 {[%clk
0:01:05.4]} 25... exf3 {[%clk 0:01:36.1]} 26. Bxf3 {[%clk 0:01:05.2]} 26... Qe6
{[%clk 0:01:26]} 27. Qb6 {[%clk 0:01:04.4]} 27... e4 {[%clk 0:01:10.3]} 28. Bg2
{[%clk 0:01:03.4]} 28... Nd5 {[%clk 0:00:49.8]} 29. Qxb7 {[%clk 0:00:59.8]}
29... Nxc3 {[%clk 0:00:44.1]} 30. bxc3 {[%clk 0:00:58.2]} 30... Rb8 {[%clk
0:00:41.6]} 31. Qc7 {[%clk 0:00:57.5]} 31... Rb2 {[%clk 0:00:39.6]} 32. Rd6
{[%clk 0:00:49.7]} 32... Qa2 {[%clk 0:00:36.6]} 33. Qc8+ {[%clk 0:00:49.6]}
33... Kh7 {[%clk 0:00:36.6]} 34. Qf5+ {[%clk 0:00:49.5]} 34... g6 {[%clk
0:00:33.2]} 35. Qxe4 {[%clk 0:00:49.5]} 35... Ne5 {[%clk 0:00:28]} 36. Rd8
{[%clk 0:00:46.1]} 36... Re2 {[%clk 0:00:26.4]} 37. Qa8 {[%clk 0:00:45]} 37...
Rxg2+ {[%clk 0:00:22.1]} 38. Qxg2 {[%clk 0:00:44.5]} 38... Nf3+ {[%clk
0:00:22.3]} 39. Kh1 {[%clk 0:00:39.5]} 39... Qa1+ {[%clk 0:00:22.5]} 0-1